bitfinex/quotes_BTCUSD_20250519
["timestamp","ask_amount","ask_price","bid_price","bid_amount"]
[1747653385929,0.20555875,102900.0,102890.0,0.26425838]
[1747653386137,0.20555875,102900.0,102890.0,0.25453983]
[1747653389260,0.20555875,102900.0,102890.0,0.26425838]
[1747653389523,0.020913,102900.0,102890.0,0.27397683]
[1747653389778,0.23471203,102900.0,102890.0,0.27397683]
[1747653389997,0.23471203,102900.0,102890.0,0.26425838]
[1747653393452,0.02091243,102900.0,102890.0,0.61397683]
[1747653393649,0.03063031,102900.0,102890.0,0.61397683]
[1747653393852,0.04034829,102900.0,102890.0,0.60746358]
[1747653393987,0.02091243,102900.0,102890.0,0.60746358]
[1747653394387,0.03063022,102900.0,102890.0,0.60746358]
[1747653394603,0.05006637,102900.0,102890.0,0.60746358]
[1747653394878,0.22499471,102900.0,102890.0,0.56230794]
[1747653395099,0.22499471,102900.0,102890.0,0.57202686]
[1747653395511,0.22499471,102900.0,102890.0,0.58752686]
[1747653395724,0.22399471,102900.0,102890.0,0.58080794]
[1747653395937,0.21427692,102900.0,102890.0,0.59052696]
[1747653396144,0.21427692,102900.0,102890.0,0.60996471]
[1747653396533,0.21427692,102900.0,102890.0,0.62168344]
[1747653396948,0.21427692,102900.0,102890.0,0.62168297]
[1747653399723,0.00047732,102900.0,102890.0,0.62168297]
[1747653399979,0.00047732,102900.0,102890.0,0.63622325]
[1747653401512,0.03886728,102910.0,102900.0,0.59561682]
[1747653401724,0.03886728,102910.0,102900.0,0.59575237]
[1747653401955,0.24292907,102910.0,102900.0,0.59575237]
[1747653402388,0.23321251,102910.0,102900.0,0.58603486]
[1747653402575,0.22349576,102910.0,102900.0,0.58703505]
[1747653402727,0.22349576,102910.0,102900.0,0.59985941]
[1747653403128,0.22349576,102910.0,102900.0,0.6095772]
[1747653404574,0.22349576,102910.0,102900.0,0.61707543]
[1747653404964,0.23626179,102910.0,102900.0,0.35174026]
[1747653405179,0.23626179,102910.0,102900.0,0.54610371]
[1747653405322,0.23626179,102910.0,102900.0,0.55582169]
[1747653405524,0.23626179,102910.0,102900.0,0.56553957]
[1747653405750,0.23626179,102910.0,102900.0,0.54610371]
[1747653405986,0.23626179,102910.0,102900.0,0.56553995]
[1747653406190,0.21996179,102910.0,102900.0,0.56553995]
[1747653406398,0.20406179,102910.0,102900.0,0.56553995]
[1747653407353,0.20406179,102910.0,102900.0,0.55582188]
[1747653408145,0.20406179,102910.0,102900.0,0.56553995]
[1747653409543,0.20406179,102910.0,102900.0,0.55904172]
[1747653409776,0.20406179,102910.0,102900.0,0.5687597]
[1747653410737,0.20406179,102910.0,102900.0,0.55904172]
[1747653412419,0.20406179,102910.0,102900.0,0.5687597]
[1747653412631,0.20406179,102910.0,102900.0,0.55904172]
[1747653412830,0.19906179,102910.0,102900.0,0.55904172]
[1747653416685,0.19906179,102910.0,102900.0,0.5687597]
[1747653417396,0.19906179,102910.0,102900.0,0.55904172]
[1747653417823,0.21496179,102910.0,102900.0,0.54932365]
[1747653419020,0.21496179,102910.0,102900.0,0.55904172]
[1747653419444,0.19906179,102910.0,102900.0,0.55904172]
[1747653419871,0.19906179,102910.0,102900.0,0.54932365]
[1747653420480,0.19906179,102910.0,102900.0,0.3549602]
[1747653420685,0.23106179,102910.0,102900.0,0.00524203]
[1747653422201,0.51649119,102910.0,102900.0,0.00524203]
[1747653422416,0.76583538,102910.0,102900.0,0.00524203]
[1747653423085,1.18543538,102910.0,102900.0,0.00524203]
[1747653423922,0.74797119,102910.0,102900.0,0.00424203]
[1747653424325,1.12417119,102910.0,102900.0,0.00324203]
[1747653424623,1.12517119,102910.0,102900.0,0.00324203]
[1747653425870,1.12521119,102910.0,102900.0,0.00324203]
[1747653427282,1.37455538,102910.0,102900.0,0.00324203]
[1747653428123,1.71455538,102910.0,102900.0,0.00324203]
[1747653429319,1.71455538,102910.0,102900.0,0.00013555]
[1747653431662,2.41295538,102910.0,102900.0,0.00013555]
[1747653432685,1.71455538,102910.0,102900.0,0.00013555]
[1747653437709,1.81186478,102910.0,102900.0,0.00013555]
[1747653437927,1.71455538,102910.0,102900.0,0.00013555]
[1747653439442,1.71655538,102910.0,102900.0,0.00013555]
[1747653439949,1.71555538,102910.0,102900.0,0.00013555]
[1747653440267,1.71855538,102910.0,102900.0,0.00013555]
[1747653443257,1.70079898,102910.0,102900.0,0.00013555]
[1747653450167,1.51267898,102910.0,102900.0,0.00013555]
[1747653450369,1.70079898,102910.0,102900.0,0.00013555]
[1747653457786,1.61509911,102910.0,102900.0,0.00013555]
[1747653458010,1.23885911,102910.0,102900.0,0.00013555]
[1747653458222,1.04321479,102910.0,102900.0,0.00013555]
[1747653458433,1.41949479,102910.0,102900.0,0.00013555]
[1747653458867,1.41949479,102910.0,102900.0,0.00391333]
[1747653459232,1.58313911,102910.0,102900.0,0.00391333]
[1747653459450,1.23915911,102910.0,102900.0,0.00391333]
[1747653459656,1.45179479,102910.0,102900.0,0.00391333]
[1747653459951,1.70114912,102910.0,102900.0,0.00391333]
[1747653467914,1.71568997,102910.0,102900.0,0.00391333]
[1747653468336,0.55381991,102890.0,102880.0,0.01123945]
[1747653468552,1.30864364,102890.0,102880.0,0.01171677]
[1747653469784,1.30864364,102890.0,102880.0,0.01371677]
[1747653470020,1.30864364,102890.0,102880.0,0.00247732]
[1747653470137,1.30864364,102890.0,102880.0,0.00047732]
[1747653470577,0.93248364,102890.0,102880.0,0.00247732]
[1747653470992,1.30864364,102890.0,102880.0,0.00047732]
[1747653471686,1.27664364,102890.0,102880.0,0.01667732]
[1747653471884,1.29254364,102890.0,102880.0,0.00047732]
[1747653472732,1.30834364,102890.0,102880.0,0.00047732]
[1747653478806,1.29244364,102890.0,102880.0,0.00047732]
[1747653479038,1.29244364,102890.0,102880.0,0.03097732]
[1747653479039,0.83920931,102890.0,102880.0,0.03097732]
[1747653479225,1.02728931,102890.0,102880.0,0.03097732]
[1747653479484,0.31112931,102890.0,102880.0,0.03097732]
[1747653479705,0.68724931,102890.0,102880.0,0.03097732]
[1747653481200,0.68724931,102890.0,102880.0,0.03469757]
[1747653482606,0.49920931,102890.0,102880.0,0.03469757]
[1747653483142,0.68724931,102890.0,102880.0,0.03469757]
[1747653483421,0.49920931,102890.0,102880.0,0.03469757]
[1747653483668,0.30482696,102890.0,102880.0,0.24363547]
[1747653483878,0.03887494,102890.0,102880.0,0.27279451]
[1747653484104,0.23325729,102890.0,102880.0,0.26307511]
[1747653484339,0.21382029,102890.0,102880.0,0.25335543]
[1747653485109,0.21382029,102890.0,102880.0,0.2630753]
[1747653485373,0.21382029,102890.0,102880.0,0.28651456]
[1747653485888,0.2235394,102890.0,102880.0,0.28651456]
[1747653486143,0.2245394,102890.0,102880.0,0.29051456]
[1747653486384,0.2245394,102890.0,102880.0,0.29051475]
[1747653486619,0.2245394,102890.0,102880.0,0.28569815]
[1747653486865,0.2245394,102890.0,102880.0,0.28569758]
[1747653488815,0.020437,102890.0,102880.0,0.62569702]
[1747653489257,0.03015583,102890.0,102880.0,0.62569702]
[1747653489705,0.03987475,102890.0,102880.0,0.62569702]
[1747653489917,0.01071836,102890.0,102880.0,0.62569702]
[1747653490133,0.03015583,102890.0,102880.0,0.64023787]
[1747653491794,0.2342571,102890.0,102880.0,0.64023787]
[1747653491992,0.03987475,102890.0,102880.0,0.64023787]
[1747653492302,0.23425776,102890.0,102880.0,0.39723842]
[1747653492521,0.21482029,102890.0,102880.0,0.58681887]
[1747653492736,0.21482029,102890.0,102880.0,0.57709881]
[1747653493170,0.21482029,102890.0,102880.0,0.58681877]
[1747653493390,0.21482029,102890.0,102880.0,0.59653864]
[1747653493849,0.001,102890.0,102880.0,0.61597838]
[1747653494076,0.001,102890.0,102880.0,0.73754803]
[1747653494290,0.18796,102920.0,102910.0,0.0313]
[1747653494465,0.38563562,102920.0,102910.0,0.24750756]
[1747653494680,0.38563562,102920.0,102910.0,0.2353616]
[1747653494882,0.39535143,102920.0,102910.0,0.2353616]
[1747653495074,0.39535143,102920.0,102910.0,0.25479501]
[1747653495331,0.38563562,102920.0,102910.0,0.26308742]
[1747653495539,0.18796,102920.0,102910.0,0.60308742]
[1747653496029,0.18996,102920.0,102910.0,0.60308742]
[1747653496277,0.002,102920.0,102910.0,0.60308742]
[1747653496486,0.001,102920.0,102910.0,0.60308742]
[1747653496749,0.001,102920.0,102910.0,0.61762827]
[1747653496967,0.00971467,102930.0,102920.0,0.25607339]
[1747653497179,0.02914449,102930.0,102920.0,0.25607339]
[1747653497592,0.02914449,102930.0,102920.0,0.25979364]
[1747653497799,0.02914449,102930.0,102920.0,0.28009552]
[1747653498223,0.03885964,102930.0,102920.0,0.28018903]
[1747653498928,0.0311444,102930.0,102920.0,0.28018903]
[1747653499145,0.03985955,102930.0,102920.0,0.27409208]
[1747653499369,0.03885955,102930.0,102920.0,0.27409208]
[1747653499904,0.0291444,102930.0,102920.0,0.27409208]
[1747653500122,0.03885955,102930.0,102920.0,0.27409208]
[1747653500812,0.0291444,102930.0,102920.0,0.27409208]
[1747653501167,0.03885955,102930.0,102920.0,0.27409208]
[1747653501370,0.0291444,102930.0,102920.0,0.27409208]
[1747653501569,0.03885945,102930.0,102920.0,0.27409208]
[1747653502411,0.00971364,102940.0,102930.0,0.25345168]
[1747653502624,0.70811279,102950.0,102940.0,0.25642988]
[1747653502833,0.70811279,102950.0,102940.0,0.26614361]
[1747653502834,0.02913912,102950.0,102940.0,0.26614361]
[1747653503058,0.23312144,102950.0,102940.0,0.24671605]
[1747653503271,0.24283489,102950.0,102940.0,0.24671605]
[1747653503482,0.2331221,102950.0,102940.0,0.24671605]
[1747653503706,0.22340912,102950.0,102940.0,0.24671605]
[1747653503889,0.20398251,102950.0,102940.0,0.24529473]
[1747653504427,0.19426906,102950.0,102940.0,0.24529473]
[1747653504644,0.19262906,102950.0,102940.0,0.23558034]
[1747653505064,0.19362906,102950.0,102940.0,0.23558034]
[1747653505490,0.19362906,102950.0,102940.0,0.04129241]
[1747653505796,0.19462906,102950.0,102940.0,0.04129241]
[1747653507665,0.19462906,102950.0,102940.0,0.23558034]
[1747653507908,0.19462906,102950.0,102940.0,0.24529473]
[1747653508128,0.19462906,102950.0,102940.0,0.25500903]
[1747653508354,0.002,102950.0,102940.0,0.61443677]
[1747653508584,0.03113855,102950.0,102940.0,0.61443677]
[1747653508796,0.05056498,102950.0,102940.0,0.61443677]
[1747653509008,0.05056498,102950.0,102940.0,0.61596156]
[1747653509221,0.04856498,102950.0,102940.0,0.61596156]
[1747653509650,0.03885172,102950.0,102940.0,0.61596156]
[1747653510119,0.02913855,102950.0,102940.0,0.61596156]
[1747653510331,0.03885172,102950.0,102940.0,0.61596156]
[1747653511215,0.04856498,102950.0,102940.0,0.60986461]
[1747653511860,0.22338638,102960.0,102950.0,0.60492135]
[1747653512310,0.22338638,102960.0,102950.0,0.6086416]
[1747653512933,0.2330986,102960.0,102950.0,0.6086416]
[1747653513560,0.2330986,102960.0,102950.0,0.598929]
[1747653513973,0.2428111,102960.0,102950.0,0.60864198]
[1747653514326,0.23309935,102960.0,102950.0,0.598929]
[1747653515017,0.23309935,102960.0,102950.0,0.36002025]
[1747653515018,0.2136751,102960.0,102950.0,0.36002025]
[1747653515248,0.2136751,102960.0,102950.0,0.34372025]
[1747653516127,0.3109845,102960.0,102950.0,0.00372025]
[1747653516338,0.3416845,102960.0,102950.0,0.00372025]
[1747653517917,0.3109845,102960.0,102950.0,0.19798931]
[1747653518135,0.40147417,102960.0,102950.0,0.24981573]
[1747653518357,0.39176251,102960.0,102950.0,0.24981573]
[1747653518989,0.41118742,102960.0,102950.0,0.25952861]
[1747653519197,0.20722416,102960.0,102950.0,0.2692414]
[1747653519411,0.02913573,102960.0,102950.0,0.2692414]
[1747653519632,0.03884805,102960.0,102950.0,0.2692414]
[1747653519851,0.04856046,102960.0,102950.0,0.2692414]
[1747653520118,0.04856046,102960.0,102950.0,0.28227088]
[1747653520360,0.22728514,102960.0,102950.0,0.28227088]
[1747653521849,0.04274708,102960.0,102950.0,0.62227088]
[1747653522278,0.23699727,102960.0,102950.0,0.62227088]
[1747653522481,0.03303458,102960.0,102950.0,0.62227088]
[1747653522697,0.02332217,102960.0,102950.0,0.62227088]
[1747653523905,0.03303458,102960.0,102950.0,0.62227088]
[1747653524097,0.42215866,102970.0,102950.0,0.62227088]
[1747653524328,0.00971194,102960.0,102950.0,0.61598357]
[1747653524528,0.0194236,102960.0,102950.0,0.61598357]
[1747653524960,0.0194236,102960.0,102950.0,0.63168357]
[1747653525626,0.04971081,102970.0,102960.0,0.59378657]
[1747653525860,0.06913327,102970.0,102960.0,0.59378657]
[1747653526321,0.07884474,102970.0,102960.0,0.59750682]
[1747653526565,0.0594219,102970.0,102960.0,0.59750682]
[1747653526805,0.07884455,102970.0,102960.0,0.59750682]
[1747653527046,0.07884455,102970.0,102960.0,0.59760033]
[1747653527318,0.28278743,102970.0,102960.0,0.59760052]
[1747653527744,0.28278743,102970.0,102960.0,0.60160052]
[1747653527945,0.28278743,102970.0,102960.0,0.62599777]
[1747653528331,0.28278743,102970.0,102960.0,0.62999777]
[1747653530386,0.07884455,102970.0,102960.0,0.62999777]
[1747653530556,0.07884455,102970.0,102960.0,0.63970961]
[1747653530795,0.28278734,102970.0,102960.0,0.63970961]
[1747653531492,0.28278809,102970.0,102960.0,0.63970961]
[1747653532064,0.25949095,102970.0,102960.0,0.63970961]
[1747653532510,0.22336572,102970.0,102960.0,0.63970961]
[1747653532811,0.24278809,102970.0,102960.0,0.63970961]
[1747653533956,0.1961934,102970.0,102960.0,0.63970961]
[1747653534256,0.1961934,102970.0,102960.0,0.65165785]
[1747653534670,0.03884521,102970.0,102960.0,0.65165785]
[1747653536558,0.02913374,102970.0,102960.0,0.65165785]
[1747653537644,0.00971081,102970.0,102960.0,0.65165785]
[1747653537839,0.0194219,102970.0,102960.0,0.65165785]
[1747653537960,0.02413318,102970.0,102960.0,0.65165785]
[1747653538449,0.01442181,102970.0,102960.0,0.65165785]
[1747653538671,0.02413327,102970.0,102960.0,0.65165785]
[1747653539464,0.39153093,102980.0,102970.0,0.20394269]
[1747653539634,0.48884033,102980.0,102970.0,0.20394279]
[1747653539848,0.48884033,102980.0,102970.0,0.21365416]
[1747653540073,0.48884033,102980.0,102970.0,0.20766304]
[1747653540485,0.48884033,102980.0,102970.0,0.21737441]
[1747653540711,0.48884033,102980.0,102970.0,0.21937441]
[1747653541662,0.48884033,102980.0,102970.0,0.22137441]
[1747653542182,0.22319179,102980.0,102970.0,0.24079678]
[1747653542460,0.02913054,102980.0,102970.0,0.28180768]
[1747653542637,0.03884097,102980.0,102970.0,0.28180768]
[1747653542871,0.00970996,102980.0,102970.0,0.28180768]
[1747653543079,0.20713671,103000.0,102990.0,0.22332169]
[1747653543292,0.58903193,103000.0,102990.0,0.21361268]
[1747653543799,0.57932339,103000.0,102990.0,0.21733293]
[1747653544069,0.01941643,103000.0,102990.0,0.26825125]
[1747653544322,0.22429982,103000.0,102990.0,0.26825125]
[1747653544542,0.23400855,103000.0,102990.0,0.26825143]
[1747653544764,0.03012497,103000.0,102990.0,0.27796045]
[1747653544981,0.22429972,103000.0,102990.0,0.25854223]
[1747653545193,0.03983361,103000.0,102990.0,0.25854223]
[1747653545401,0.02141643,103000.0,102990.0,0.61796036]
[1747653545537,0.03012497,103000.0,102990.0,0.61796036]
[1747653545741,0.23300845,103000.0,102990.0,0.58883293]
[1747653545950,0.23300845,103000.0,102990.0,0.35866849]
[1747653545951,0.22999202,103000.0,102990.0,0.35866849]
[1747653546163,0.24549202,103000.0,102990.0,0.01866849]
[1747653548934,0.24549202,103000.0,102990.0,0.01268302]
[1747653550561,0.34280142,103000.0,102990.0,0.01268302]
[1747653551191,0.31090142,103000.0,102990.0,0.01268302]
[1747653551414,0.39160348,103000.0,102990.0,0.20687663]
[1747653551626,0.21359175,103000.0,102990.0,0.25659532]
[1747653552178,0.22329992,103000.0,102990.0,0.25659532]
[1747653552386,0.24271653,103000.0,102990.0,0.26630443]
[1747653553304,0.00970788,103000.0,102990.0,0.2905543]
[1747653553506,0.02912412,103000.0,102990.0,0.2905543]
[1747653553714,0.02912412,103000.0,102990.0,0.28459153]
[1747653554010,0.02912403,103000.0,102990.0,0.28459153]
[1747653554713,0.02941586,103000.0,102990.0,0.28459153]
[1747653555122,0.03912393,103000.0,102990.0,0.28459153]
[1747653555268,0.01583406,103000.0,102990.0,0.28459153]
[1747653555469,0.01583397,103000.0,102990.0,0.62459153]
[1747653555676,0.02554194,103000.0,102990.0,0.62459153]
[1747653557349,0.01583387,103000.0,102990.0,0.62459153]
[1747653557763,0.00612599,103000.0,102990.0,0.62459153]
[1747653560591,0.01941436,103010.0,103000.0,0.59579982]
[1747653560803,0.03882947,103010.0,103000.0,0.59579982]
[1747653561015,0.02912187,103010.0,103000.0,0.59579982]
[1747653561414,0.2135501,103020.0,103010.0,0.21357101]
[1747653561618,0.41089629,103020.0,103010.0,0.21357101]
[1747653561850,0.41137429,103020.0,103010.0,0.22327833]
[1747653562594,0.4056681,103020.0,103010.0,0.22327833]
[1747653562888,0.4056681,103020.0,103010.0,0.22699858]
[1747653563623,0.4056681,103020.0,103010.0,0.21729126]
[1747653564189,0.39596163,103020.0,103010.0,0.22313345]
[1747653564413,0.20832163,103020.0,103010.0,0.22313355]
[1747653564626,0.22773504,103020.0,103010.0,0.24254818]
[1747653564793,0.23744189,103020.0,103010.0,0.23284096]
[1747653565157,0.22773532,103020.0,103010.0,0.24254809]
[1747653565460,0.22773532,103020.0,103010.0,0.23284096]
[1747653566758,0.22773532,103020.0,103010.0,0.22313355]
[1747653567810,0.22773532,103020.0,103010.0,0.23284087]
[1747653568022,0.02389141,103020.0,103010.0,0.242548]
[1747653568227,0.22773532,103020.0,103010.0,0.23284087]
[1747653568753,0.22373532,103020.0,103010.0,0.23284087]
[1747653568949,0.22373532,103020.0,103010.0,0.23384087]
[1747653569158,0.22373532,103020.0,103010.0,0.23484087]
[1747653570944,0.21402866,103020.0,103010.0,0.22513355]
[1747653571350,0.21402866,103020.0,103010.0,0.24454828]
[1747653571913,0.21402866,103020.0,103010.0,0.58454828]
[1747653572134,0.01989113,103020.0,103010.0,0.59425541]
[1747653572352,0.23344123,103020.0,103010.0,0.58454828]
[1747653572553,0.22373504,103020.0,103010.0,0.58454828]
[1747653572766,0.22373504,103020.0,103010.0,0.55542604]
[1747653572923,0.21402857,103020.0,103010.0,0.56513355]
[1747653573724,0.21402857,103020.0,103010.0,0.55929136]
[1747653573926,0.21402857,103020.0,103010.0,0.56899877]
[1747653576465,0.21294857,103020.0,103010.0,0.56899877]
[1747653579633,0.21294857,103020.0,103010.0,0.57870609]
[1747653582306,0.18966144,103020.0,103010.0,0.57870609]
[1747653582520,0.1993681,103020.0,103010.0,0.58841331]
[1747653582688,0.22325628,103020.0,103010.0,0.57870561]
[1747653582891,0.23296313,103020.0,103010.0,0.57870561]
[1747653583101,0.22325704,103020.0,103010.0,0.57870561]
[1747653585649,0.22325704,103020.0,103010.0,0.56899839]
[1747653588884,0.21355066,103020.0,103010.0,0.56899839]
[1747653589922,0.24445066,103020.0,103010.0,0.56899839]
[1747653590241,0.21355066,103020.0,103010.0,0.56899839]
[1747653590445,0.21355066,103020.0,103010.0,0.57870561]
[1747653590696,0.21355066,103020.0,103010.0,0.56899839]
[1747653592691,0.21355066,103020.0,103010.0,0.54958366]
[1747653592905,0.23544391,103020.0,103010.0,0.34572025]
[1747653593120,0.33275331,103020.0,103010.0,0.34572025]
[1747653594680,0.33275331,103020.0,103010.0,0.53987615]
[1747653594890,0.33275331,103020.0,103010.0,0.54958394]
[1747653595095,0.52087331,103020.0,103010.0,0.55929164]
[1747653595289,0.33275331,103020.0,103010.0,0.55929164]
[1747653595621,0.32304646,103020.0,103010.0,0.34572025]
[1747653596259,0.31804646,103020.0,103010.0,0.34572025]
[1747653597613,0.29475901,103020.0,103010.0,0.34572025]
[1747653598220,0.29475901,103020.0,103010.0,0.54958394]
[1747653600185,0.29475901,103020.0,103010.0,0.35542804]
[1747653600390,0.29475901,103020.0,103010.0,0.54958394]
[1747653601452,0.29475901,103020.0,103010.0,0.55929164]
[1747653601664,0.18852,103020.0,103010.0,0.57870637]
[1747653601875,0.19818666,103020.0,103010.0,0.5884135]
[1747653602024,0.21759979,103020.0,103010.0,0.5884135]
[1747653602224,0.41173685,103020.0,103010.0,0.5884135]
[1747653602433,0.21759979,103020.0,103010.0,0.5884135]
[1747653603413,0.2273057,103020.0,103010.0,0.6040135]
[1747653603669,0.02911904,103020.0,103010.0,0.6040135]
[1747653603872,0.0388257,103020.0,103010.0,0.6040135]
[1747653604084,0.0388257,103020.0,103010.0,0.6201135]
[1747653604985,0.04853245,103020.0,103010.0,0.6201135]
[1747653605558,0.23296342,103020.0,103010.0,0.61040637]
[1747653605771,0.01941295,103020.0,103010.0,0.62011293]
[1747653606171,0.02911904,103020.0,103010.0,0.62011293]
[1747653606377,0.0388257,103020.0,103010.0,0.62011293]
[1747653606580,0.0388257,103020.0,103010.0,0.63094302]
[1747653606818,0.04853245,103020.0,103010.0,0.64289126]
[1747653606978,0.20774069,103020.0,103010.0,0.61596117]
[1747653607747,0.22715392,103020.0,103010.0,0.64288866]
[1747653607953,0.22715392,103020.0,103010.0,0.60036117]
[1747653608163,0.02911961,103020.0,103010.0,0.61576117]
[1747653608358,0.23296342,103020.0,103010.0,0.61576117]
[1747653608581,0.24267027,103020.0,103010.0,0.61576117]
[1747653608787,0.24267027,103020.0,103010.0,0.60381293]
[1747653611568,0.23296389,103020.0,103010.0,0.5787058]
[1747653612706,0.2096771,103020.0,103010.0,0.5787058]
[1747653613420,0.21938376,103020.0,103010.0,0.6104058]
[1747653613623,0.21938376,103020.0,103010.0,0.5947058]
[1747653613807,0.01941228,103020.0,103010.0,0.60441293]
[1747653614130,0.04853189,103020.0,103010.0,0.62051293]
[1747653614342,0.04853189,103020.0,103010.0,0.60441293]
[1747653614343,0.2426697,103020.0,103010.0,0.60441293]
[1747653614771,0.24267027,103020.0,103010.0,0.5787058]
[1747653614950,0.01941295,103020.0,103010.0,0.60481293]
[1747653615165,0.0291197,103020.0,103010.0,0.60481293]
[1747653615311,0.2252908,103030.0,103020.0,0.19413706]
[1747653615509,0.71901154,103030.0,103020.0,0.54393732]
[1747653615709,0.71901154,103030.0,103020.0,0.53423057]
[1747653615914,0.71901154,103030.0,103020.0,0.53795082]
[1747653616211,0.70930601,103030.0,103020.0,0.34381376]
[1747653621909,0.70886601,103030.0,103020.0,0.53795082]
[1747653623551,0.70886601,103030.0,103020.0,0.34381376]
[1747653628979,0.70886601,103030.0,103020.0,0.00381376]
[1747653630894,0.70886601,103030.0,103020.0,0.00939119]
[1747653631090,0.70942601,103030.0,103020.0,0.20352825]
[1747653631289,0.70942601,103030.0,103020.0,0.00939119]
[1747653631451,0.52062601,103030.0,103020.0,0.00939119]
[1747653632497,0.33230601,103030.0,103020.0,0.00939119]
[1747653632676,0.70926601,103030.0,103020.0,0.00939119]
[1747653633078,0.70926601,103030.0,103020.0,0.00381376]
[1747653635439,0.33230601,103030.0,103020.0,0.00381376]
[1747653635648,0.70898601,103030.0,103020.0,0.00381376]
[1747653638193,0.33230601,103030.0,103020.0,0.00381376]
[1747653638402,0.52058601,103030.0,103020.0,0.00381376]
[1747653642012,0.50518601,103030.0,103020.0,0.00381376]
[1747653642218,0.69394601,103030.0,103020.0,0.00381376]
[1747653643271,0.67824601,103030.0,103020.0,0.00381376]
[1747653644820,0.48996601,103030.0,103020.0,0.00381376]
[1747653645025,0.67768601,103030.0,103020.0,0.00381376]
[1747653648883,0.48996601,103030.0,103020.0,0.19795082]
[1747653649068,0.59000955,103030.0,103020.0,0.00381376]
[1747653649272,0.34313895,103030.0,103020.0,0.00381376]
[1747653649455,0.53085895,103030.0,103020.0,0.00381376]
[1747653651838,0.6940317,103030.0,103020.0,0.00381376]
[1747653652454,0.53085895,103030.0,103020.0,0.00381376]
[1747653652991,0.53085895,103030.0,103020.0,0.00939058]
[1747653659438,0.31083895,103030.0,103020.0,0.00939058]
[1747653660024,0.49855895,103030.0,103020.0,0.00939058]
[1747653660664,0.21352955,103030.0,103020.0,0.00939058]
[1747653660871,0.40124955,103030.0,103020.0,0.00939058]
[1747653662201,0.40124955,103030.0,103020.0,0.02529058]
[1747653663777,0.40124955,103030.0,103020.0,0.04109058]
[1747653664389,0.40124955,103030.0,103020.0,0.00939058]
[1747653664604,0.40124955,103030.0,103020.0,0.00381376]
[1747653669563,0.40124955,103030.0,103020.0,0.0093943]
[1747653670169,0.40124955,103030.0,103020.0,0.0255943]
[1747653670609,0.21352955,103030.0,103020.0,0.23914478]
[1747653670751,0.41095546,103030.0,103020.0,0.22943821]
[1747653670952,0.41095546,103030.0,103020.0,0.23914496]
[1747653671174,0.41095546,103030.0,103020.0,0.25534496]
[1747653671175,0.21352993,103030.0,103020.0,0.25534496]
[1747653671419,0.40124993,103030.0,103020.0,0.26505162]
[1747653672290,0.40124993,103030.0,103020.0,0.24976442]
[1747653672487,0.40124993,103030.0,103020.0,0.25076442]
[1747653673051,0.41095471,103030.0,103020.0,0.61017708]
[1747653673348,0.43036643,103030.0,103020.0,0.60147089]
[1747653673554,0.42066118,103030.0,103020.0,0.61117727]
[1747653674076,0.41095565,103030.0,103020.0,0.61117727]
[1747653675661,0.41095565,103030.0,103020.0,0.59176442]
[1747653675869,0.39154412,103030.0,103020.0,0.55615082]
[1747653676274,0.39154412,103030.0,103020.0,0.56585767]
[1747653676471,0.39154412,103030.0,103020.0,0.58115767]
[1747653678349,0.39154412,103030.0,103020.0,0.56585767]
[1747653679534,0.20382412,103030.0,103020.0,0.56585767]
[1747653679737,0.39154412,103030.0,103020.0,0.56585767]
[1747653680584,0.39154412,103030.0,103020.0,0.57556433]
[1747653680777,0.39154412,103030.0,103020.0,0.59056442]
[1747653681239,0.39154412,103030.0,103020.0,0.60027108]
[1747653682946,0.39154412,103030.0,103020.0,0.59056442]
[1747653683155,0.38183821,103030.0,103020.0,0.57556442]
[1747653683802,0.20382393,103030.0,103020.0,0.60137089]
[1747653683978,0.40120945,103030.0,103020.0,0.61107708]
[1747653684205,0.42062089,103030.0,103020.0,0.61107708]
[1747653684486,0.43032604,103030.0,103020.0,0.61107727]
[1747653684708,0.02911611,103030.0,103020.0,0.62078346]
[1747653684867,0.02911611,103030.0,103020.0,0.63532431]
[1747653684868,0.01553789,103030.0,103020.0,0.63532431]
[1747653685040,0.01553789,103030.0,103020.0,0.64962245]
[1747653685822,0.02524323,103030.0,103020.0,0.64962245]
[1747653686365,0.02524266,103030.0,103020.0,0.64962245]
[1747653686595,0.03494828,103030.0,103020.0,0.64962245]
[1747653686815,0.02524266,103030.0,103020.0,0.64962245]
[1747653688006,0.01941049,103030.0,103020.0,0.64962245]
[1747653688195,0.02911602,103030.0,103020.0,0.64962245]
[1747653690277,0.01941049,103030.0,103020.0,0.64962245]
[1747653690481,0.02911602,103030.0,103020.0,0.64962245]
[1747653690810,0.01941049,103030.0,103020.0,0.64962245]
[1747653691199,0.02911602,103030.0,103020.0,0.64962245]
[1747653692889,0.01941049,103030.0,103020.0,0.64962245]
[1747653693124,0.02911602,103030.0,103020.0,0.64962245]
[1747653695084,0.03882164,103030.0,103020.0,0.64962245]
[1747653695293,0.04852736,103030.0,103020.0,0.64962245]
[1747653695713,0.03882164,103030.0,103020.0,0.64962245]
[1747653696594,0.04852736,103030.0,103020.0,0.64962245]
[1747653696804,0.21352955,103030.0,103020.0,0.40695275]
[1747653697003,0.21352955,103030.0,103020.0,0.3601119]
[1747653697238,0.22982955,103030.0,103020.0,0.3601119]
[1747653697466,0.24632955,103030.0,103020.0,0.34581376]
[1747653698141,0.24632955,103030.0,103020.0,0.53995082]
[1747653698349,0.40120955,103030.0,103020.0,0.54965757]
[1747653698963,0.22323536,103030.0,103020.0,0.56907032]
[1747653699175,0.23294127,103030.0,103020.0,0.56907032]
[1747653699535,0.23294127,103030.0,103020.0,0.55936404]
[1747653700598,0.20965726,103030.0,103020.0,0.55936404]
[1747653701623,0.20965726,103030.0,103020.0,0.55936423]
[1747653702553,0.20965726,103030.0,103020.0,0.56907061]
[1747653704149,0.20965726,103030.0,103020.0,0.55936423]
[1747653704395,0.20965726,103030.0,103020.0,0.5690707]
[1747653704606,0.19995145,103030.0,103020.0,0.34581376]
[1747653704801,0.22164554,103030.0,103020.0,0.53995082]
[1747653705005,0.22164554,103030.0,103020.0,0.34581376]
[1747653705209,0.18671952,103030.0,103020.0,0.34581376]
[1747653705352,0.37439952,103030.0,103020.0,0.34581376]
[1747653705556,0.35899952,103030.0,103020.0,0.34581376]
[1747653705761,0.15531952,103030.0,103020.0,0.54965748]
[1747653706116,0.34299952,103030.0,103020.0,0.54965748]
[1747653707029,0.34299952,103030.0,103020.0,0.54965767]
[1747653707561,0.36241086,103030.0,103020.0,0.58547071]
[1747653707765,0.01941134,103030.0,103020.0,0.59517699]
[1747653707985,0.22323471,103030.0,103020.0,0.61942403]
[1747653708202,0.03882231,103030.0,103020.0,0.63492403]
[1747653708406,0.03882231,103030.0,103020.0,0.64922354]
[1747653708611,0.23294052,103030.0,103020.0,0.63951735]
[1747653708811,0.24264643,103030.0,103020.0,0.63951735]
[1747653709016,0.0291165,103030.0,103020.0,0.64922354]
[1747653709848,0.23294052,103030.0,103020.0,0.64922354]
[1747653711575,0.24264643,103030.0,103020.0,0.64922354]
[1747653712039,0.24264643,103030.0,103020.0,0.63372354]
[1747653714224,0.0291165,103030.0,103020.0,0.63372354]
[1747653714429,0.0291165,103030.0,103020.0,0.64882354]
[1747653714610,0.03882231,103030.0,103020.0,0.64882354]
[1747653714817,0.03882231,103030.0,103020.0,0.63428269]